bitfinex/quotes_BTCUSD_20251116
["timestamp","ask_amount","ask_price","bid_price","bid_amount"]
[1763305729646,0.2092673,95572.0,95564.0,0.23391195]
[1763305729856,0.13179903,95588.0,95564.0,0.23391195]
[1763305729857,0.20928134,95566.0,95565.0,0.02263]
[1763305730493,0.20927561,95568.0,95565.0,0.02263]
[1763305730704,0.20927933,95567.0,95565.0,0.02263]
[1763305731527,0.20927235,95570.0,95565.0,0.02463]
[1763305731734,0.20927235,95570.0,95565.0,0.02263]
[1763305731939,0.20926587,95573.0,95568.0,0.00654]
[1763305732147,0.20926958,95571.0,95568.0,0.00654]
[1763305732563,0.20927253,95570.0,95569.0,0.02263]
[1763305732990,0.20926958,95571.0,95569.0,0.02263]
[1763305734074,0.20926814,95572.0,95569.0,0.02263]
[1763305734453,0.20926005,95575.0,95569.0,0.02263]
[1763305734656,0.20926399,95574.0,95569.0,0.02263]
[1763305734861,0.2092531,95579.0,95569.0,0.02463]
[1763305735072,0.2092531,95579.0,95578.0,0.02782]
[1763305736127,0.2197156,95580.0,95569.0,0.003]
[1763305736128,0.20927069,95570.0,95569.0,0.001]
[1763305736335,0.20927069,95570.0,95568.0,0.00654]
[1763305737658,0.20912927,95570.0,95569.0,0.0154]
[1763305737902,0.20912927,95570.0,95568.0,0.00654]
[1763305738415,0.20927507,95568.0,95563.0,0.01242]
[1763305738643,0.20928383,95564.0,95563.0,0.01242]
[1763305739095,0.20930573,95554.0,95549.0,0.02263]
[1763305739309,0.20930573,95554.0,95553.0,0.03511127]
[1763305740221,0.20930573,95554.0,95553.0,0.01248127]
[1763305740434,0.20930573,95554.0,95553.0,6.127e-05]
[1763305740681,0.59533697,95554.0,95553.0,6.127e-05]
[1763305740889,0.62678364,95554.0,95553.0,6.127e-05]
[1763305741301,0.62678364,95554.0,95553.0,0.00206127]
[1763305741514,0.63658336,95554.0,95553.0,0.00106127]
[1763305741935,0.60981196,95554.0,95553.0,6.127e-05]
[1763305742142,0.60981196,95554.0,95553.0,0.00106127]
[1763305742347,0.60001224,95554.0,95553.0,6.127e-05]
[1763305744605,0.27701224,95554.0,95553.0,6.127e-05]
[1763305745242,0.37636436,95554.0,95553.0,6.127e-05]
[1763305747051,0.37636436,95554.0,95553.0,0.00106127]
[1763305747686,0.35971436,95554.0,95553.0,0.00106127]
[1763305749243,0.32826769,95554.0,95553.0,0.00106127]
[1763305750073,0.32826769,95554.0,95553.0,6.127e-05]
[1763305750483,0.32826769,95554.0,95553.0,0.00206127]
[1763305750686,0.65126769,95554.0,95553.0,0.00206127]
[1763305751742,0.65126769,95554.0,95553.0,6.127e-05]
[1763305752172,0.65126769,95554.0,95553.0,0.00106127]
[1763305753213,0.65126769,95554.0,95553.0,0.00206127]
[1763305754156,0.66649769,95554.0,95553.0,0.00206127]
[1763305755957,0.66649769,95554.0,95553.0,0.00106127]
[1763305756382,0.66649769,95554.0,95553.0,0.00206127]
[1763305756862,0.66649769,95554.0,95553.0,0.00106127]
[1763305757253,0.66649769,95554.0,95553.0,0.00206127]
[1763305761379,0.65126769,95554.0,95553.0,0.00206127]
[1763305766321,0.66655769,95554.0,95553.0,0.00206127]
[1763305766967,0.65126769,95554.0,95553.0,0.00206127]
[1763305769405,0.65127867,95554.0,95553.0,0.00206127]
[1763305769631,0.01962082,95554.0,95553.0,0.00206127]
[1763305769835,0.20930474,95555.0,95553.0,0.00206127]
[1763305770040,0.11897294,95554.0,95553.0,0.00206127]
[1763305770275,0.01962082,95554.0,95553.0,0.00206127]
[1763305770484,0.01962082,95561.0,95553.0,0.00206127]
[1763305770690,0.20930331,95556.0,95554.0,0.02317]
[1763305771578,0.20930331,95556.0,95555.0,0.01234]
[1763305773576,0.20930331,95556.0,95555.0,0.01434]
[1763305774417,0.20929895,95558.0,95555.0,0.01434]
[1763305774620,0.20929259,95560.0,95555.0,0.01534]
[1763305774879,0.20929259,95560.0,95556.0,0.02379]
[1763305775281,0.2459,95578.0,95564.0,0.02745]
[1763305775511,0.2459,95578.0,95564.0,0.01142]
[1763305775512,0.20927726,95567.0,95564.0,0.01142]
[1763305775685,0.22889285,95566.0,95564.0,0.01142]
[1763305775891,0.0196134,95565.0,95564.0,0.01142]
[1763305776883,0.0196134,95565.0,95564.0,0.01242]
[1763305777081,0.0196134,95565.0,95564.0,0.01142]
[1763305777389,0.0196134,95565.0,95564.0,0.01242]
[1763305778485,0.0196134,95565.0,95564.0,0.01342]
[1763305780500,0.20928159,95566.0,95564.0,0.01342]
[1763305780914,0.20928159,95566.0,95565.0,0.02379]
[1763305783211,0.20928159,95566.0,95565.0,0.02479]
[1763305783437,0.09935212,95569.0,95565.0,0.02479]
[1763305783714,0.20927945,95566.0,95565.0,0.02579]
[1763305784481,0.20927945,95566.0,95565.0,0.001]
[1763305784726,0.20927945,95566.0,95565.0,0.002]
[1763305785230,0.20927945,95566.0,95565.0,0.001]
[1763305785478,0.20927945,95566.0,95564.0,0.01142]
[1763305785722,0.20927945,95566.0,95565.0,0.001]
[1763305786174,0.20927945,95566.0,95564.0,0.01142]
[1763305786405,0.20927945,95566.0,95565.0,0.001]
[1763305786633,0.20927945,95566.0,95565.0,0.002]
[1763305787114,0.20927945,95566.0,95565.0,0.001]
[1763305787384,0.20927945,95566.0,95564.0,0.01142]
[1763305787655,0.20927945,95566.0,95564.0,0.01242]
[1763305787855,0.20927945,95566.0,95564.0,0.01142]
[1763305788284,0.20927945,95566.0,95565.0,0.001]
[1763305789292,0.22888018,95566.0,95565.0,0.001]
[1763305790235,0.24548018,95566.0,95565.0,0.001]
[1763305790806,0.56848018,95566.0,95565.0,0.002]
[1763305791334,0.56848018,95566.0,95565.0,0.001]
[1763305791541,0.20930573,95554.0,95553.0,6.127e-05]
[1763305793060,0.0421015,95554.0,95553.0,0.00106127]
[1763305793279,0.0421015,95554.0,95553.0,0.00206127]
[1763305794525,0.07831686,95554.0,95553.0,0.00206127]
[1763305794724,0.50066898,95554.0,95553.0,0.00206127]
[1763305795068,0.51208898,95554.0,95553.0,0.00206127]
[1763305796308,0.51208898,95554.0,95553.0,0.00106127]
[1763305797631,0.51208898,95554.0,95553.0,6.127e-05]
[1763305802535,0.52188633,95554.0,95553.0,1.27e-06]
[1763305802754,0.20940215,95510.0,95509.0,0.01164]
[1763305802967,0.20949132,95510.0,95509.0,0.03651]
[1763305803401,0.20949132,95510.0,95509.0,0.01164]
[1763305805321,0.20949132,95510.0,95509.0,0.01364]
[1763305805730,0.20949132,95510.0,95509.0,0.01564]
[1763305807942,8.917e-05,95510.0,95509.0,0.01564]
[1763305808346,0.20949132,95510.0,95509.0,0.01564]
[1763305809156,8.917e-05,95510.0,95509.0,0.01564]
[1763305809361,8.917e-05,95510.0,95509.0,0.07999917]
[1763305811018,8.917e-05,95510.0,95509.0,0.07799917]
[1763305811663,8.917e-05,95510.0,95509.0,0.26646308]
[1763305811874,8.917e-05,95510.0,95509.0,0.05505874]
[1763305812083,0.00308917,95510.0,95509.0,0.05505874]
[1763305814473,0.00308917,95510.0,95509.0,0.26446308]
[1763305832140,0.00308917,95510.0,95509.0,0.58746308]
[1763305832662,0.00308917,95510.0,95509.0,0.61890535]
[1763305833062,8.917e-05,95510.0,95509.0,0.61890535]
[1763305833420,0.00208917,95510.0,95509.0,0.61890535]
[1763305834153,0.00208917,95510.0,95509.0,0.63987535]
[1763305836107,0.00038579,95510.0,95509.0,0.63987535]
[1763305842969,1e-08,95510.0,95509.0,0.63987535]
[1763305844014,0.20929522,95559.0,95552.0,0.20930917]
[1763305844333,0.20929522,95559.0,95558.0,0.02287]
[1763305844540,0.20929522,95559.0,95558.0,0.00783]
[1763305845263,0.2092909,95561.0,95559.0,0.02457]
[1763305845467,0.20928996,95562.0,95559.0,0.02457]
[1763305845902,0.20929259,95560.0,95559.0,0.02457]
[1763305846100,0.20928996,95562.0,95559.0,0.02457]
[1763305846519,0.20929246,95561.0,95559.0,0.02457]
[1763305847205,0.20929246,95561.0,95559.0,0.02757]
[1763305847644,0.20929246,95561.0,95559.0,0.02557]
[1763305848036,0.20929246,95561.0,95559.0,0.02757]
[1763305848440,0.20929246,95561.0,95559.0,0.02657]
[1763305848633,0.20928996,95562.0,95559.0,0.02657]
[1763305848842,0.20928996,95562.0,95559.0,0.02757]
[1763305849055,0.20928373,95565.0,95560.0,0.20929259]
[1763305849235,0.20927494,95569.0,95568.0,0.02722]
[1763305850246,0.20926873,95571.0,95568.0,0.02722]
[1763305850640,0.20927288,95569.0,95568.0,0.05179]
[1763305851255,0.20927288,95569.0,95568.0,0.02822]
[1763305851830,0.20927288,95569.0,95568.0,0.05379]
[1763305852419,0.09935212,95570.0,95568.0,0.02922]
[1763305852954,0.3347,95583.0,95569.0,0.02457]
[1763305853170,0.09935212,95571.0,95569.0,0.02457]
[1763305853796,0.20926642,95572.0,95569.0,0.02457]
[1763305853971,0.09935212,95571.0,95569.0,0.02457]
[1763305854826,0.09935212,95571.0,95569.0,0.02557]
[1763305855188,0.09935212,95571.0,95569.0,0.02657]
[1763305855368,0.20927069,95570.0,95569.0,0.02657]
[1763305855770,0.09935212,95571.0,95569.0,0.02657]
[1763305855972,0.30862197,95571.0,95569.0,0.02657]
[1763305856326,0.01959442,95570.0,95569.0,0.02557]
[1763305856521,0.01959442,95570.0,95569.0,0.02657]
[1763305856718,0.01959442,95570.0,95569.0,0.02557]
[1763305857475,0.01046134,95590.0,95569.0,0.02557]
[1763305857476,0.20925535,95578.0,95572.0,0.2092661]
[1763305857805,0.22885068,95577.0,95570.0,0.20927069]
[1763305857969,0.01959316,95576.0,95570.0,0.20927069]
[1763305858153,0.01959316,95576.0,95571.0,0.02457]
[1763305858558,0.20925974,95575.0,95571.0,0.02457]
[1763305858783,0.20923637,95586.0,95571.0,0.02457]
[1763305858983,0.01959002,95579.0,95571.0,0.02457]
[1763305859195,0.20925755,95576.0,95571.0,0.02457]
[1763305859395,0.01959002,95575.0,95571.0,0.02457]
[1763305859793,0.01959002,95575.0,95572.0,0.21026631]
[1763305859995,0.01959002,95574.0,95572.0,0.21026631]
[1763305860173,0.20925317,95578.0,95573.0,0.02457]
[1763305860375,0.01958763,95577.0,95574.0,0.01218]
[1763305860575,0.01958763,95576.0,95574.0,0.01218]
[1763305860846,0.01958763,95575.0,95574.0,0.01218]
[1763305861133,0.01958763,95578.0,95575.0,0.20925974]
[1763305861360,0.20922785,95590.0,95580.0,0.01218]
[1763305861562,0.01958379,95589.0,95587.0,0.01218]
[1763305861764,0.22881507,95588.0,95587.0,0.01218]
[1763305862433,0.22881507,95588.0,95587.0,0.03561]
[1763305862841,0.22886014,95588.0,95587.0,0.01218]
[1763305863253,0.22886014,95588.0,95587.0,0.01318]
[1763305864966,0.22886014,95588.0,95587.0,0.01418]
[1763305867740,0.20927635,95588.0,95587.0,0.01418]
[1763305867946,0.22884983,95588.0,95587.0,0.01418]
[1763305874497,0.24419983,95588.0,95587.0,0.002]
[1763305874707,0.22884983,95588.0,95587.0,0.002]
[1763305874918,0.22884983,95588.0,95587.0,0.01402]
[1763305875133,0.01961855,95588.0,95587.0,0.002]
[1763305875327,0.20924222,95583.0,95582.0,0.02475]
[1763305875536,0.2288157,95583.0,95582.0,0.02475]
[1763305876362,0.2288157,95583.0,95581.0,0.01168]
[1763305876707,0.01957348,95582.0,95581.0,0.01168]
[1763305877140,0.01959348,95585.0,95582.0,0.02475]
[1763305877359,0.01959373,95584.0,95583.0,0.20924222]
[1763305877569,0.20927854,95588.0,95582.0,0.02575]
[1763305877773,0.01959373,95587.0,95582.0,0.02575]
[1763305878151,0.20923566,95586.0,95582.0,0.02575]
[1763305878311,0.20923566,95586.0,95582.0,0.02475]
[1763305878312,0.01959373,95585.0,95582.0,0.02475]
[1763305878518,0.01959373,95585.0,95583.0,0.20924222]
[1763305878715,0.01959373,95584.0,95583.0,0.21024222]
[1763305878933,4.507e-05,95588.0,95584.0,0.02475]
[1763305879342,4.507e-05,95588.0,95584.0,0.23398798]
[1763305879838,4.507e-05,95588.0,95585.0,0.23398579]
[1763305880237,4.507e-05,95588.0,95586.0,0.02475]
[1763305881370,0.01964552,95588.0,95586.0,0.02475]
[1763305881566,0.01960045,95587.0,95586.0,0.23398566]
[1763305881764,4.507e-05,95588.0,95586.0,0.23498566]
[1763305881969,4.507e-05,95588.0,95587.0,0.02475]
[1763305882590,0.01964552,95588.0,95587.0,0.02475]
[1763305882787,4.507e-05,95588.0,95587.0,0.02475]
[1763305883297,4.507e-05,95588.0,95587.0,0.06816874]
[1763305883496,4.507e-05,95588.0,95587.0,0.04341874]
[1763305884455,4.507e-05,95588.0,95587.0,0.04641874]
[1763305884858,4.507e-05,95588.0,95587.0,0.04441874]
[1763305885066,4.507e-05,95588.0,95587.0,0.04341874]
[1763305887076,4.507e-05,95588.0,95587.0,0.25265221]
[1763305887486,4.507e-05,95588.0,95587.0,0.04341874]
[1763305887845,4.507e-05,95588.0,95587.0,0.25265221]
[1763305888074,4.507e-05,95588.0,95587.0,0.04541874]
[1763305888371,4.507e-05,95588.0,95587.0,0.25665221]
[1763305892691,4.507e-05,95588.0,95587.0,0.04741874]
[1763305894572,4.507e-05,95588.0,95587.0,0.004]
[1763305894773,4.507e-05,95588.0,95587.0,0.04741874]
[1763305895632,4.507e-05,95588.0,95587.0,0.004]
[1763305897073,4.507e-05,95588.0,95587.0,0.21323347]
[1763305897210,4.507e-05,95588.0,95587.0,0.004]
[1763305897415,4.507e-05,95588.0,95587.0,0.002]
[1763305897814,4.507e-05,95588.0,95587.0,0.003]
[1763305898158,4.507e-05,95588.0,95585.0,0.22125567]
[1763305898374,4.507e-05,95588.0,95587.0,0.001]
[1763305898583,4.507e-05,95588.0,95585.0,0.22125567]
[1763305898799,4.507e-05,95588.0,95587.0,0.001]
[1763305899027,4.507e-05,95588.0,95587.0,0.003]
[1763305900773,4.507e-05,95588.0,95587.0,0.002]
[1763305902605,0.20927635,95588.0,95587.0,0.002]
[1763305903658,0.20927635,95588.0,95587.0,0.003]
[1763305904549,4.507e-05,95588.0,95587.0,0.003]
[1763305909661,0.20927635,95588.0,95587.0,0.003]
[1763305910938,4.507e-05,95588.0,95587.0,0.003]
[1763305923980,0.20927635,95588.0,95587.0,0.003]
[1763305924186,4.507e-05,95588.0,95587.0,0.003]
[1763305927262,0.09939719,95588.0,95587.0,0.02748]
[1763305927464,0.09939719,95588.0,95587.0,0.003]
[1763305927833,0.11902947,95588.0,95587.0,0.003]
[1763305928277,0.09939719,95588.0,95587.0,0.02748]
[1763305928476,0.09939719,95588.0,95587.0,0.02448]
[1763305928698,0.09939719,95588.0,95587.0,0.02548]
[1763305930097,0.11902567,95588.0,95587.0,0.02548]
[1763305930300,0.09939719,95588.0,95587.0,0.02548]
[1763305931077,0.09939719,95588.0,95587.0,0.001]
[1763305931942,0.09939719,95588.0,95587.0,0.02548]
[1763305932142,4.507e-05,95588.0,95587.0,0.02548]
[1763305932978,4.507e-05,95588.0,95587.0,0.02448]
[1763305933301,4.507e-05,95588.0,95587.0,0.02548]
[1763305934803,4.507e-05,95588.0,95587.0,0.02648]
[1763305935210,0.20927635,95588.0,95587.0,0.02648]
[1763305945093,0.20927635,95588.0,95587.0,0.002]
[1763305949002,0.22889743,95588.0,95587.0,0.002]
[1763305949833,0.25278743,95588.0,95587.0,0.002]
[1763305950474,0.25278743,95588.0,95587.0,0.001]
[1763305951355,0.20924441,95582.0,95581.0,0.01168]
[1763305951564,0.22886549,95582.0,95581.0,0.01168]
[1763305953090,0.20925536,95577.0,95576.0,0.03532]
[1763305954144,0.20925536,95577.0,95576.0,0.01143]
[1763305955318,0.20925536,95577.0,95576.0,0.01243]
[1763305956932,0.20925482,95578.0,95576.0,0.01243]
[1763305957145,0.20925482,95578.0,95577.0,0.02433]
[1763305958437,0.20925482,95578.0,95577.0,0.02533]
[1763305959953,0.20925482,95578.0,95577.0,0.002]
[1763305961580,0.20925482,95578.0,95577.0,0.02633]
[1763305964474,0.20925482,95578.0,95577.0,0.002]
[1763305967421,0.20925482,95578.0,95577.0,0.001]
[1763305967847,0.20925482,95578.0,95576.0,0.01143]
[1763305968277,0.20925482,95578.0,95577.0,0.001]
[1763305968425,0.22887954,95578.0,95577.0,0.001]
[1763305968814,0.24112954,95578.0,95577.0,0.001]
[1763305969246,0.25760954,95578.0,95577.0,0.001]
[1763305969442,0.26307707,95578.0,95577.0,0.001]
[1763305969758,0.58607707,95578.0,95577.0,0.001]
[1763305970950,0.2092904,95561.0,95560.0,0.01143]
[1763305972215,0.20930354,95555.0,95554.0,0.01143]
[1763305973478,0.20934858,95555.0,95554.0,0.01143]
[1763305973902,0.20934858,95555.0,95554.0,0.01243]
[1763305974631,0.20934858,95555.0,95554.0,0.01343]
[1763305974805,0.20934858,95555.0,95554.0,0.002]
[1763305980283,4.504e-05,95555.0,95554.0,0.002]
[1763305994917,4.504e-05,95555.0,95553.0,0.20930744]
[1763305995247,4.504e-05,95555.0,95554.0,0.001]
[1763305995449,4.504e-05,95555.0,95554.0,0.07017874]
[1763305995758,4.504e-05,95555.0,95554.0,0.06917874]
[1763305995957,4.504e-05,95555.0,95554.0,0.04541874]
[1763305998184,4.504e-05,95555.0,95554.0,0.04641874]
[1763305998803,4.504e-05,95555.0,95554.0,0.04441874]
[1763305999005,4.504e-05,95555.0,95554.0,0.04341874]
[1763305999209,4.504e-05,95555.0,95554.0,0.04541874]
[1763305999493,4.504e-05,95555.0,95554.0,0.04641874]
[1763306007118,4.504e-05,95555.0,95554.0,0.39034931]
[1763306007374,4.504e-05,95555.0,95554.0,0.36941874]
[1763306007548,4.504e-05,95555.0,95554.0,0.40085043]
[1763306008328,4.504e-05,95555.0,95554.0,0.39985043]
[1763306008534,4.504e-05,95555.0,95554.0,0.39785043]
[1763306008743,4.504e-05,95555.0,95554.0,0.39985043]
[1763306009087,4.504e-05,95555.0,95554.0,0.40185043]
[1763306013845,4.504e-05,95555.0,95554.0,0.39985043]
[1763306014818,0.2092269,95590.0,95584.0,0.02638]
[1763306015017,0.20923855,95585.0,95584.0,0.00998]
[1763306015929,0.20925098,95579.0,95578.0,0.00998]
[1763306016328,0.20925098,95579.0,95578.0,0.03306]
[1763306016853,0.20925098,95579.0,95578.0,0.00998]
[1763306017017,0.09935212,95586.0,95579.0,0.01205]
[1763306017301,0.20925098,95579.0,95578.0,0.01098]
[1763306017638,0.20925098,95579.0,95578.0,0.03506]
[1763306017844,0.20925098,95579.0,95578.0,0.03406]
[1763306018227,0.20925098,95579.0,95578.0,0.03306]
[1763306019347,0.20925098,95579.0,95578.0,0.00998]
[1763306019578,0.20925098,95579.0,95578.0,0.01098]
[1763306020147,0.20925098,95579.0,95578.0,0.01198]
[1763306022635,0.0461569,95579.0,95578.0,0.01198]
[1763306023467,0.0692369,95579.0,95578.0,0.01198]
[1763306025275,0.0692369,95579.0,95578.0,0.01202]
[1763306025796,0.0692369,95579.0,95578.0,0.0351]
[1763306026258,0.50749236,95579.0,95578.0,0.00204]
[1763306026616,0.2093123,95551.0,95550.0,4e-05]
[1763306026855,0.01961875,95551.0,95550.0,4e-05]
[1763306027025,0.2093123,95551.0,95550.0,4e-05]
[1763306027227,0.24075411,95551.0,95550.0,4e-05]
[1763306027635,0.56375411,95551.0,95550.0,4e-05]
[1763306027938,0.57976411,95551.0,95550.0,0.0001387]
[1763306030068,0.56375411,95551.0,95550.0,0.0001387]
[1763306032387,0.03144181,95551.0,95550.0,0.0001387]
[1763306032809,0.24075411,95551.0,95550.0,0.0001387]
[1763306037568,0.25676411,95551.0,95550.0,0.0001387]
[1763306037890,0.5852336,95551.0,95550.0,0.0001387]
[1763306038994,0.5692236,95551.0,95550.0,0.0001387]
[1763306039188,0.60475595,95551.0,95550.0,0.0001387]
[1763306041704,0.5692236,95551.0,95550.0,0.0230787]
[1763306041861,0.2462236,95551.0,95550.0,0.0230787]
[1763306043602,0.2627836,95551.0,95550.0,0.0001387]
[1763306044382,0.2627836,95551.0,95550.0,0.0011387]
[1763306044587,0.2627836,95551.0,95550.0,0.0001387]
[1763306044792,0.2462236,95551.0,95550.0,0.0001387]
[1763306045672,0.2627836,95551.0,95550.0,0.0001387]
[1763306045989,0.28232434,95551.0,95550.0,0.0001387]
[1763306047848,0.26576434,95551.0,95550.0,0.0001387]
[1763306049946,0.27507434,95551.0,95550.0,0.0001387]
[1763306050169,0.29163434,95551.0,95550.0,0.0001387]
[1763306050944,0.27507434,95551.0,95550.0,0.0001387]
[1763306056365,0.2848913,95551.0,95550.0,0.0001387]
[1763306056498,0.2755813,95551.0,95550.0,0.0001387]
[1763306056698,0.26576434,95551.0,95550.0,0.0001387]
[1763306057122,0.27558186,95551.0,95550.0,0.0001387]
[1763306060774,0.06626956,95551.0,95550.0,0.0001387]
[1763306060979,0.05098255,95551.0,95550.0,0.0001387]
[1763306061387,0.01954074,95551.0,95550.0,0.0001387]
[1763306064078,0.22885304,95551.0,95550.0,0.0001387]
[1763306064330,0.01954074,95551.0,95550.0,0.0001387]
[1763306065287,0.01954074,95551.0,95550.0,0.0011387]
[1763306066273,0.01954074,95551.0,95550.0,0.21045319]
[1763306067917,0.01954074,95551.0,95550.0,0.0011387]
[1763306069406,0.01961742,95556.0,95551.0,0.2093123]
[1763306069538,0.22892272,95555.0,95551.0,0.02254]
[1763306069742,0.01961742,95554.0,95552.0,0.02254]
[1763306069968,0.01961742,95553.0,95552.0,0.02254]
[1763306071013,0.01961742,95553.0,95552.0,0.02354]
[1763306071507,0.01961742,95553.0,95552.0,0.02254]
[1763306071679,0.01961742,95553.0,95552.0,0.02354]
[1763306072215,0.01961563,95553.0,95552.0,0.02354]
[1763306073856,0.20930792,95553.0,95552.0,0.001]
[1763306074060,0.22892355,95553.0,95552.0,0.001]
[1763306076177,0.20930792,95553.0,95552.0,0.001]
[1763306079975,0.22892304,95553.0,95552.0,0.001]
[1763306080517,0.2093123,95551.0,95550.0,0.0001387]
[1763306084375,0.22893577,95551.0,95550.0,0.0001387]
[1763306084791,0.22893577,95551.0,95550.0,0.0249187]
[1763306086043,0.22893577,95551.0,95550.0,0.0001387]
[1763306091531,0.01962347,95551.0,95550.0,0.0001387]
[1763306091752,0.323,95558.0,95550.0,0.0001387]
[1763306091753,0.20931036,95552.0,95550.0,0.0001387]
[1763306091959,0.01962347,95551.0,95550.0,0.0001387]
[1763306101676,0.03623347,95551.0,95550.0,0.0001387]
[1763306101894,0.35923347,95551.0,95550.0,0.0001387]
[1763306102747,0.36905742,95551.0,95550.0,0.0001387]
[1763306104473,0.37005742,95551.0,95550.0,0.0001387]
[1763306104697,0.36905742,95551.0,95550.0,0.0001387]
[1763306105122,0.4737268,95551.0,95550.0,1e-08]
[1763306106244,0.4747268,95551.0,95550.0,1e-08]
[1763306106670,0.51714554,95551.0,95550.0,1e-08]
[1763306107713,0.51814554,95551.0,95550.0,1e-08]
[1763306107952,0.51714554,95551.0,95550.0,1e-08]
[1763306108134,0.51814554,95551.0,95550.0,1e-08]
[1763306108802,0.51714554,95551.0,95550.0,1e-08]
[1763306109192,0.51614554,95551.0,95550.0,1e-08]
[1763306109685,0.53256485,95551.0,95550.0,1e-08]
[1763306110029,0.53656485,95551.0,95550.0,1e-08]
[1763306117248,0.536469,95551.0,95550.0,1e-08]
[1763306118788,0.53242189,95501.0,95500.0,4e-05]
[1763306118999,0.56719951,95501.0,95500.0,0.00048914]
[1763306120842,0.54767189,95501.0,95500.0,0.00048914]
[1763306127090,0.323,95501.0,95500.0,0.00048914]
[1763306127310,0.20940221,95510.0,95509.0,0.02745]
[1763306127514,0.20940221,95510.0,95509.0,0.01152]
[1763306128310,0.20940215,95510.0,95509.0,0.01152]
[1763306129116,0.20941969,95502.0,95501.0,0.00834]
[1763306129738,0.20941969,95502.0,95500.0,0.00048914]
[1763306129739,0.323,95501.0,95500.0,0.00048914]
[1763306129957,0.42235212,95501.0,95500.0,0.00048914]
[1763306131994,0.42235212,95501.0,95500.0,0.00148914]
[1763306133422,0.20938836,95517.0,95503.0,0.20941559]
[1763306133645,0.00931,95527.0,95515.0,0.01641]
[1763306133844,0.42235212,95516.0,95515.0,0.01641]
[1763306134006,0.20940215,95510.0,95509.0,0.01224]
[1763306134575,0.2093995,95512.0,95509.0,0.01224]
[1763306134764,0.20940215,95510.0,95509.0,0.01224]
[1763306134980,0.2093995,95512.0,95509.0,0.01224]
[1763306135180,0.20940215,95510.0,95509.0,0.01224]
[1763306136290,0.2093995,95512.0,95509.0,0.01224]
[1763306136465,0.20940215,95510.0,95509.0,0.01224]
[1763306138480,0.20939119,95515.0,95509.0,0.01224]
[1763306138481,0.323,95514.0,95509.0,0.03659]
[1763306139494,0.20939747,95513.0,95509.0,0.03659]
[1763306139698,0.323,95514.0,95509.0,0.03659]
[1763306139904,0.09935212,95516.0,95510.0,0.02435]
[1763306140111,0.323,95515.0,95510.0,0.02435]
[1763306140333,0.53239321,95515.0,95510.0,0.02435]
[1763306140730,0.20939515,95514.0,95510.0,0.02435]
[1763306140948,0.20939338,95514.0,95510.0,0.02435]
[1763306141153,0.323,95515.0,95510.0,0.02435]
[1763306141154,0.20939762,95513.0,95510.0,0.02435]
[1763306141356,0.20939996,95511.0,95510.0,0.02435]
[1763306141594,0.323,95521.0,95519.0,0.02865]
[1763306141795,0.323,95521.0,95520.0,0.01641]
[1763306142024,0.323,95521.0,95520.0,0.04076]
[1763306142863,0.24082286,95526.0,95521.0,0.02435]
[1763306142864,0.20936927,95525.0,95521.0,0.02435]
[1763306143070,0.323,95522.0,95521.0,0.02435]
[1763306143488,0.20937429,95523.0,95521.0,0.02435]
[1763306145151,0.20937429,95523.0,95521.0,0.02535]
[1763306145629,0.20937429,95523.0,95521.0,0.02435]
[1763306145892,0.20937429,95523.0,95521.0,0.02535]
[1763306146327,0.04929628,95523.0,95521.0,0.02535]
[1763306148310,0.04929628,95523.0,95521.0,0.001]
[1763306149109,0.20938023,95520.0,95519.0,0.01224]
[1763306151434,0.20938023,95520.0,95519.0,0.01324]
[1763306159299,0.323,95526.0,95519.0,0.01324]
[1763306159470,0.2093735,95524.0,95519.0,0.01324]
[1763306159687,0.2093735,95524.0,95520.0,0.02435]
[1763306160087,0.20937672,95522.0,95521.0,0.01224]
[1763306160688,0.20937365,95523.0,95521.0,0.01224]
[1763306161057,0.20937365,95523.0,95521.0,0.03659]
[1763306161260,0.323,95524.0,95521.0,0.03659]
[1763306161450,0.209367,95527.0,95522.0,0.02435]
[1763306161652,0.20936981,95525.0,95522.0,0.02435]
[1763306161888,0.209367,95527.0,95522.0,0.02435]
[1763306162319,0.20936994,95525.0,95522.0,0.02435]
[1763306163179,0.20937333,95524.0,95522.0,0.02435]
[1763306163595,0.21982688,95530.0,95522.0,0.02435]
[1763306164229,0.20936322,95528.0,95522.0,0.02435]
[1763306164412,0.2093605,95529.0,95522.0,0.02435]
[1763306164655,0.2093605,95529.0,95522.0,0.02535]
[1763306164858,0.2093605,95529.0,95522.0,0.02435]
[1763306165067,0.20937365,95523.0,95521.0,0.01224]
[1763306165292,0.20938848,95517.0,95514.0,0.01224]
[1763306165507,0.20939119,95515.0,95514.0,0.01224]
[1763306166443,0.20938321,95519.0,95515.0,0.01211]
[1763306166860,0.20938321,95519.0,95516.0,0.02328]
[1763306167491,0.20938681,95517.0,95516.0,0.02328]
[1763306168581,0.20938681,95517.0,95516.0,0.02428]
[1763306169552,0.20938321,95519.0,95516.0,0.02428]
[1763306170741,0.20938681,95517.0,95516.0,0.02428]
[1763306170945,0.20938681,95517.0,95516.0,0.02328]
[1763306171138,0.20938321,95519.0,95516.0,0.02428]
[1763306171474,0.20937796,95522.0,95516.0,0.02328]
[1763306171677,0.20938676,95518.0,95516.0,0.02328]
[1763306171876,0.20938676,95518.0,95516.0,0.02428]
[1763306172081,0.20938676,95518.0,95516.0,0.02328]
[1763306172653,0.20936558,95527.0,95525.0,0.01611]
[1763306172862,0.20936662,95527.0,95525.0,0.02822]
[1763306173088,0.01964912,95526.0,95525.0,0.02822]
[1763306173698,0.01964912,95526.0,95525.0,0.01211]
[1763306174095,0.01964912,95529.0,95525.0,0.01311]
[1763306174308,0.01964912,95529.0,95525.0,0.01211]
[1763306174508,0.00073082,95526.0,95525.0,0.01211]
[1763306174718,0.02037994,95526.0,95525.0,0.01211]
[1763306174918,0.02037994,95526.0,95525.0,0.01311]
[1763306175217,0.02037994,95526.0,95525.0,0.01211]
[1763306175664,0.20936269,95528.0,95525.0,0.01211]
[1763306175845,0.20935552,95532.0,95528.0,0.02742]
[1763306176119,0.20935984,95530.0,95528.0,0.02742]
[1763306176451,0.20935984,95530.0,95529.0,0.02414]
[1763306177729,0.20935984,95530.0,95529.0,0.02458914]
[1763306178322,0.20935984,95530.0,95529.0,0.02658914]
[1763306182534,0.20935984,95530.0,95529.0,0.00244914]
[1763306183375,0.03145067,95532.0,95529.0,0.02658914]
[1763306183818,0.20959561,95535.0,95529.0,0.02658914]
[1763306184047,0.02658914,95532.0,95529.0,0.02658914]
[1763306184256,0.20935831,95530.0,95529.0,0.02558914]
[1763306184458,0.02658914,95532.0,95529.0,0.02558914]
[1763306184661,0.20935612,95531.0,95529.0,0.02458914]